fUST/lending_fUST_20251120
["ID","MTS","AMOUNT","RATE_DAILY","PERIOD"]
[394508544,1763647850416,-162.115188,0.00019905,2]
[394508545,1763647850425,-160.330046,0.00019905,2]
[394508546,1763647850435,-373.57975363,0.00019913,2]
[394508547,1763647850444,-288.55971267,0.0002,14]
[394508548,1763647850454,-932.0,0.0002,2]
[394508549,1763647850464,-955.0,0.0002,2]
[394508550,1763647850478,-11658.52563978,0.0002,2]
[394508551,1763647850487,-14618.56628469,0.0002,2]
[394508552,1763647850497,-369.56182839,0.0002,2]
[394508553,1763647850506,-23000.0,0.0002,2]
[394508554,1763647850515,-201.53309261,0.0002,2]
[394508555,1763647850525,-501.4360762,0.0002,2]
[394508556,1763647850535,-1219.11686918,0.0002,20]
[394508557,1763647850544,-300.0,0.0002,10]
[394508558,1763647850554,-1233.66012477,0.0002,30]
[394508559,1763647850563,-251.81800146,0.0002,21]
[394508560,1763647850572,-3803.27767464,0.0002,2]
[394508561,1763647850582,-105466.0,0.0002,7]
[394508562,1763647850591,-159.42,0.0002,2]
[394508563,1763647850601,-306.0,0.00020017,2]
[394508564,1763647850610,-1144.52472903,0.00020032,2]
[394508565,1763647850619,-1000.0,0.000201,2]
[394508566,1763647850629,-1000.0,0.000201,2]
[394508567,1763647850638,-1000.0,0.000201,2]
[394508568,1763647850647,-1000.0,0.000201,2]
[394508569,1763647850657,-1000.0,0.000201,2]
[394508570,1763647850667,-1000.0,0.000201,2]
[394508571,1763647850676,-155.79963171,0.0002013,2]
[394508572,1763647850686,-1470.559529,0.00020187,2]
[394508573,1763647850695,-375.0,0.00020248,2]
[394508574,1763647850705,-1360.0,0.00020274,2]
[394508575,1763647850714,-162.115188,0.00020456,3]
[394508576,1763647850726,-462.0,0.00020463,2]
[394508577,1763647850736,-1437.968914,0.00020548,2]
[394508578,1763647850747,-151.0,0.00020548,3]
[394508579,1763647850757,-151.0,0.00020548,3]
[394508580,1763647850767,-151.0,0.00020548,3]
[394508581,1763647850776,-151.0,0.00020548,3]
[394508582,1763647850786,-160.943993,0.00020548,3]
[394508583,1763647850795,-1381.43039794,0.0002061,2]
[394508584,1763647850804,-2151.0,0.00020684,2]
[394508585,1763647850814,-630.0,0.00020684,2]
[394508586,1763647850823,-989.0,0.00020684,2]
[394508587,1763647850832,-197.8448055,0.00020777,2]
[394508588,1763647850841,-902.2,0.00020821,2]
[394508589,1763647850850,-783.451192,0.00020822,2]
[394508590,1763647850859,-254.88933814,0.000209,2]
[394508591,1763647850868,-151.0,0.000209,3]
[394508592,1763647850877,-151.0,0.000209,3]
[394508593,1763647850886,-151.0,0.000209,4]
[394508594,1763647850895,-275.66928941,0.00021,2]
[394508595,1763647850904,-35965.26898207,0.00021,2]
[394508596,1763647850913,-220.0,0.0002115,15]
[394508597,1763647850922,-191.6531395,0.00021599,2]
[394508598,1763647850931,-383.306279,0.00021599,2]
[394508599,1763647850940,-191.6531395,0.00021599,2]
[394508600,1763647850949,-336.8141821,0.00021599,2]
[394508601,1763647850958,-1000.0,0.00021611,7]
[394508602,1763647850967,-244.0,0.00021611,7]
[394508603,1763647850983,-403.3338933,0.00021913,2]
[394508604,1763647850993,-902.2,0.00021917,2]
[394508605,1763647851002,-398.932408,0.00021918,2]
[394508606,1763647851013,-398.932408,0.00021918,2]
[394508607,1763647851023,-398.932408,0.00021918,2]
[394508608,1763647851033,-398.932408,0.00021918,2]
[394508609,1763647851043,-398.932408,0.00021918,2]
[394508610,1763647851052,-398.932408,0.00021918,2]
[394508611,1763647851061,-398.932408,0.00021918,2]
[394508612,1763647851071,-398.932408,0.00021918,2]
[394508613,1763647851080,-398.932408,0.00021918,2]
[394508614,1763647851089,-398.932408,0.00021918,2]
[394508615,1763647851098,-398.932408,0.00021918,2]
[394508616,1763647851107,-398.932408,0.00021918,2]
[394508617,1763647851117,-398.932408,0.00021918,2]
[394508618,1763647851126,-398.932408,0.00021918,2]
[394508619,1763647851135,-398.932408,0.00021918,2]
[394508620,1763647851145,-398.932408,0.00021918,2]
[394508621,1763647851154,-398.932408,0.00021918,2]
[394508622,1763647851164,-398.932408,0.00021918,2]
[394508623,1763647851173,-398.932408,0.00021918,2]
[394508624,1763647851183,-398.932412,0.00021918,2]
[394508625,1763647851192,-291.451134,0.00021918,7]
[394508626,1763647851201,-291.451134,0.00021918,7]
[394508627,1763647851215,-291.451134,0.00021918,7]
[394508628,1763647851227,-291.451134,0.00021918,7]
[394508629,1763647851237,-291.451134,0.00021918,7]
[394508630,1763647851246,-291.451134,0.00021918,7]
[394508631,1763647851256,-291.451134,0.00021918,7]
[394508632,1763647851265,-291.451134,0.00021918,7]
[394508633,1763647851274,-291.451134,0.00021918,7]
[394508634,1763647851286,-291.451134,0.00021918,7]
[394508635,1763647851295,-291.451134,0.00021918,7]
[394508636,1763647851306,-291.451134,0.00021918,7]
[394508637,1763647851315,-291.451134,0.00021918,7]
[394508638,1763647851326,-291.451134,0.00021918,7]
[394508639,1763647851335,-291.451134,0.00021918,7]
[394508640,1763647851345,-291.451134,0.00021918,7]
[394508641,1763647851354,-291.451134,0.00021918,7]
[394508642,1763647851363,-291.451134,0.00021918,7]
[394508643,1763647851373,-291.451134,0.00021918,7]
[394508644,1763647851383,-291.45113,0.00021918,7]
[394508645,1763647851398,-300.0,0.00021918,2]
[394508646,1763647851410,-150.0,0.00021918,2]
[394508647,1763647851420,-170694.57739987,0.00022,2]
[394508648,1763647851430,-366.63,0.00022,14]
[394508649,1763647851439,-553.08,0.00022,7]
[394508650,1763647851448,-11864.33058001,0.00022303,2]
[394508651,1763647851461,-236.27261287,0.00022436,2]
[394508652,1763647851474,-300.0,0.00022466,2]
[394508653,1763647851483,-204.17864735,0.000225,2]
[394508654,1763647851493,-236.27261287,0.00022534,9]
[394508655,1763647851502,-236.27261287,0.00022631,17]
[394508656,1763647851511,-236.27261287,0.00022728,25]
[394508657,1763647851522,-667.8048606,0.0002274,2]
[394508658,1763647851532,-236.27261287,0.00022825,32]
[394508659,1763647851541,-153.44007478,0.00022837,30]
[394508660,1763647851551,-168.52171865,0.00022837,30]
[394508661,1763647851560,-236.27261287,0.00022922,40]
[394508662,1763647851569,-165.0,0.00023,7]
[394508663,1763647851578,-902.2,0.00023013,2]
[394508664,1763647851587,-500.0,0.00023014,2]
[394508665,1763647851597,-450.0,0.00023014,2]
[394508666,1763647851607,-236.27261287,0.00023019,48]
[394508667,1763647851616,-236.27261287,0.00023116,56]
[394508668,1763647851625,-236.27261287,0.00023213,63]
[394508669,1763647851635,-236.27261287,0.00023311,71]
[394508670,1763647851645,-236.27261287,0.00023408,79]
[394508671,1763647851655,-236.27261287,0.00023505,86]
[394508672,1763647851664,-600.0,0.00023562,2]
[394508673,1763647851674,-236.27261287,0.00023602,94]
[394508674,1763647851683,-2151.0,0.00023684,2]
[394508675,1763647851692,-630.0,0.00023684,2]
[394508676,1763647851701,-162.115188,0.00023684,3]
[394508677,1763647851711,-160.330046,0.00023684,3]
[394508678,1763647851720,-341.47632939,0.00023695,2]
[394508679,1763647851732,-236.27261287,0.00023699,102]
[394508680,1763647851742,-1000.0,0.00023772,7]
[394508681,1763647851751,-492.0,0.00023772,7]
[394508682,1763647851761,-236.27261287,0.00023796,110]
[394508683,1763647851770,-341.47632939,0.00023798,9]
[394508684,1763647851779,-243.72743071,0.00023834,30]
[394508685,1763647851788,-70209.69157707,0.000239,2]
[394508686,1763647851797,-162.115188,0.000239,2]
[394508687,1763647851806,-160.330046,0.000239,2]
[394508688,1763647851816,-341.47632939,0.000239,17]
[394508689,1763647851825,-433.08803297,0.00023913,2]
[394508690,1763647851834,-341.47632939,0.00024003,25]
[394508691,1763647851843,-341.47632939,0.00024105,32]
[394508692,1763647851853,-902.2,0.00024109,2]
[394508693,1763647851862,-750.0,0.0002411,2]
[394508694,1763647851871,-364806.68505649,0.00024142,2]
[394508695,1763647851880,-40547.96205589,0.00024142,2]
[394508696,1763647851890,-553.08,0.000242,7]
[394508697,1763647851899,-341.47632939,0.00024208,40]
[394508698,1763647851908,-341.47632939,0.00024311,48]
[394508699,1763647851917,-341.47632939,0.00024413,56]
[394508700,1763647851926,-38189.78755417,0.00024499,2]
[394508701,1763647851935,-282018.62,0.000245,2]
[394508702,1763647852046,-341.47632939,0.00024516,63]
[394508703,1763647852068,-366.63,0.000246,14]
[394508704,1763647852078,-341.47632939,0.00024618,71]
[394508705,1763647852088,-859.88681939,0.00024658,2]
[394508706,1763647852097,-150.0,0.00024658,2]
[394508707,1763647852107,-380.0,0.00024658,2]
[394508708,1763647852116,-151.0,0.00024658,7]
[394508709,1763647852125,-154.549242,0.00024658,7]
[394508710,1763647852135,-341.47632939,0.00024721,79]
[394508711,1763647852145,-341.47632939,0.00024823,86]
[394508712,1763647852154,-757252.905907,0.000249,2]
[394508713,1763647852164,-341.47632939,0.00024926,94]
[394508714,1763647852174,-251.32488978,0.00025,2]
[394508715,1763647852184,-1081.88401599,0.00025,2]
[394508716,1763647852193,-1988.44357078,0.00025,2]
[394508717,1763647852204,-2665.7801151,0.00025,2]
[394508718,1763647852218,-10364.0,0.00025,2]
[394508719,1763647852230,-150.0,0.00025,2]
[394508720,1763647852240,-668.73032369,0.00025,2]
[394508721,1763647852251,-600.0,0.00025,2]
[394508722,1763647852260,-347.571778,0.00025,2]
[394508723,1763647852270,-276.1,0.00025,30]
[394508724,1763647852279,-2258.0,0.00025,2]
[394508725,1763647852290,-805.3752988,0.00025,5]
[394508726,1763647852298,-341.47632939,0.00025029,102]
[394508727,1763647852307,-341.47632939,0.00025131,110]
[394508728,1763647852317,-553.08,0.000252,7]
[394508729,1763647852327,-902.2,0.00025205,2]
[394508730,1763647852337,-250.0,0.00025205,2]
[394508731,1763647852346,-900.0,0.00025469,3]
[394508732,1763647852356,-1000.0,0.000255,2]
[394508733,1763647852365,-164.5298397,0.00025712,2]
[394508734,1763647852375,-154.4355753,0.00025712,2]
[394508735,1763647852384,-164.5298397,0.00025712,2]
[394508736,1763647852394,-164.5298397,0.00025712,2]
[394508737,1763647852403,-164.5298397,0.00025712,2]
[394508738,1763647852412,-164.5298397,0.00025712,2]
[394508739,1763647852422,-164.5298397,0.00025712,2]
[394508740,1763647852432,-164.5298397,0.00025712,2]
[394508741,1763647852441,-164.5298397,0.00025712,2]
[394508742,1763647852451,-164.5298397,0.00025712,2]
[394508743,1763647852460,-164.5298397,0.00025712,2]
[394508744,1763647852470,-350.0,0.00025753,2]
[394508745,1763647852481,-282018.62,0.000258,2]
[394508746,1763647852491,-462.84217264,0.00025913,2]
[394508747,1763647852501,-528.08916816,0.00026,2]
[394508748,1763647852511,-19900.0,0.00026,2]
[394508749,1763647852521,-1000.0,0.00026149,30]
[394508750,1763647852530,-791.0,0.00026149,30]
[394508751,1763647852540,-193.95414925,0.0002616,2]
[394508752,1763647852550,-902.2,0.00026301,2]
[394508753,1763647852560,-450.0,0.00026301,2]
[394508754,1763647852570,-1144.52472903,0.00026558,2]
[394508755,1763647852579,-366.63,0.000266,14]
[394508756,1763647852589,-1470.559529,0.00026676,2]
[394508757,1763647852599,-2151.0,0.00026684,2]
[394508758,1763647852608,-630.0,0.00026684,2]
[394508759,1763647852618,-553.08,0.000267,7]
[394508760,1763647852628,-550.0,0.00026849,2]
[394508761,1763647852638,-162.115188,0.00026912,3]
[394508762,1763647852647,-160.330046,0.00026912,3]
[394508763,1763647852657,-600.0,0.00027,14]
[394508764,1763647852667,-1000.0,0.00027,27]
[394508765,1763647852677,-1013.8128364,0.00027123,3]
[394508766,1763647852687,-565.55627927,0.0002739,7]
[394508767,1763647852696,-902.2,0.00027397,2]
[394508768,1763647852706,-1000.0,0.00027397,2]
[394508769,1763647852716,-1000.0,0.00027397,2]
[394508770,1763647852727,-1000.0,0.00027397,2]
[394508771,1763647852736,-1000.0,0.00027397,2]
[394508772,1763647852746,-1000.0,0.00027397,2]
[394508773,1763647852756,-1000.0,0.00027397,2]
[394508774,1763647852765,-1000.0,0.00027397,2]
[394508775,1763647852775,-1000.0,0.00027397,2]
[394508776,1763647852785,-1000.0,0.00027397,2]
[394508777,1763647852795,-961.40569626,0.00027397,2]
[394508778,1763647852805,-650.0,0.00027397,5]
[394508779,1763647852815,-150.0,0.00027397,5]
[394508780,1763647852826,-150.0,0.00027397,5]
[394508781,1763647852835,-282018.62,0.000274,2]
[394508782,1763647852844,-2356.88,0.000274,2]
[394508783,1763647852854,-28765.49712425,0.000275,2]
[394508784,1763647852863,-553.08,0.000279,7]
[394508785,1763647852872,-2356.88,0.000279,2]
[394508786,1763647852881,-492.59631231,0.00027913,2]
[394508787,1763647852891,-848.05002897,0.00027945,5]
[394508788,1763647852901,-250.0,0.00027945,5]
[394508789,1763647852913,-250.80685605,0.00027945,5]
[394508790,1763647852922,-15269.33062026,0.00028,2]
[394508791,1763647852931,-2157.04448173,0.00028,2]
[394508792,1763647852941,-528.7004146,0.00028,5]
[394508793,1763647852952,-400.97185895,0.00028,7]
[394508794,1763647852962,-90000.0,0.00028,2]
[394508795,1763647852971,-902.2,0.00028493,2]
[394508796,1763647852981,-350.0,0.00028493,5]
[394508797,1763647852992,-200.0,0.00028673,5]
[394508798,1763647853002,-282018.62,0.000287,2]
[394508799,1763647853011,-26767.43670768,0.0002876,2]
[394508800,1763647853019,-1000.0,0.00028764,30]
[394508801,1763647853029,-1000.0,0.00028764,30]
[394508802,1763647853038,-11864.33058001,0.00028817,2]
[394508803,1763647853048,-887.2776014,0.00029,2]
[394508804,1763647853058,-2400.0,0.00029,5]
[394508805,1763647853067,-2356.88,0.00029,2]
[394508806,1763647853077,-1000.0,0.00029,29]
[394508807,1763647853087,-124403.41487612,0.00029,10]
[394508808,1763647853096,-450.0,0.00029041,5]
[394508809,1763647853106,-366.63,0.000294,14]
[394508810,1763647853116,-553.08,0.000294,7]
[394508811,1763647853126,-162.115188,0.00029485,10]
[394508812,1763647853136,-902.2,0.00029589,2]
[394508813,1763647853145,-550.0,0.00029589,5]
[394508814,1763647853155,-160.0,0.00029649,3]
[394508815,1763647853164,-2151.0,0.00029684,2]
[394508816,1763647853173,-169.424,0.00029684,2]
[394508817,1763647853183,-303.16632024,0.00029768,5]
[394508818,1763647853192,-153.0,0.00029819,30]
[394508819,1763647853202,-1501.47421509,0.00029852,3]
[394508820,1763647853215,-241.5826972,0.0002989,14]
[394508821,1763647853226,-522.35045198,0.00029913,2]
[394508822,1763647853235,-162.115188,0.00029969,10]
[394508823,1763647853246,-269.09909517,0.0003,2]
[394508824,1763647853256,-418.76394324,0.0003,2]
[394508825,1763647853266,-900.0,0.0003,2]
[394508826,1763647853276,-20899.13807247,0.0003,2]
[394508827,1763647853286,-2069.49,0.0003,30]
[394508828,1763647853295,-17870.53653128,0.0003,2]
[394508829,1763647853304,-194.05574751,0.0003,2]
[394508830,1763647853313,-300.0,0.0003,30]
[394508831,1763647853323,-1100.56886362,0.0003,2]
[394508832,1763647853333,-400.97185895,0.0003,30]
[394508833,1763647853342,-400.97185895,0.0003,10]
[394508834,1763647853352,-287.20429037,0.0003013,2]
[394508835,1763647853361,-650.0,0.00030137,5]
[394508836,1763647853371,-674.6026562,0.0003022,2]
[394508837,1763647853381,-282018.62,0.000303,2]
[394508838,1763647853390,-153.0,0.00030366,30]
[394508839,1763647853400,-153.0,0.00030366,30]
[394508840,1763647853409,-153.0,0.00030366,30]
[394508841,1763647853419,-277.4092837,0.00030366,30]
[394508842,1763647853428,-162.115188,0.00030454,10]
[394508843,1763647853437,-902.2,0.00030684,2]
[394508844,1763647853446,-750.0,0.00030685,5]
[394508845,1763647853456,-151.0,0.000308,15]
[394508846,1763647853466,-151.0,0.000308,10]
[394508847,1763647853476,-400.97185895,0.000309,10]
[394508848,1763647853486,-162.115188,0.00030939,10]
[394508849,1763647853496,-160.330046,0.00030939,10]
[394508850,1763647853505,-305.37064557,0.0003099,2]
[394508851,1763647853514,-30000.0,0.0003112,2]
[394508852,1763647853524,-214.27566347,0.00031233,5]
[394508853,1763647853534,-160.0,0.00031289,4]
[394508854,1763647853544,-1000.0,0.0003164,30]
[394508855,1763647853553,-774.0,0.0003164,30]
[394508856,1763647853563,-902.2,0.0003178,2]
[394508857,1763647853572,-400.97185895,0.000318,10]
[394508858,1763647853582,-43830.72854529,0.000319,2]
[394508859,1763647853592,-282018.62,0.000319,2]
[394508860,1763647853601,-552.10459165,0.00031913,2]
[394508861,1763647853611,-5006.81263406,0.00032,5]
[394508862,1763647853620,-165.0,0.00032,14]
[394508863,1763647853631,-168.0,0.00032082,14]
[394508864,1763647853641,-366.63,0.000323,14]
[394508865,1763647853651,-150.0,0.00032432,2]
[394508866,1763647853661,-582.991,0.00032684,2]
[394508867,1763647853670,-862.270242,0.000328,20]
[394508868,1763647853680,-500.0,0.00032876,2]
[394508869,1763647853689,-379.82548399,0.00032876,2]
[394508870,1763647853698,-902.2,0.00032876,2]
[394508871,1763647853708,-446.83719781,0.00032876,2]
[394508872,1763647853718,-341.49034369,0.00032876,2]
[394508873,1763647853729,-500.0,0.00032876,2]
[394508874,1763647853739,-500.0,0.00032876,2]
[394508875,1763647853749,-500.0,0.00032876,2]
[394508876,1763647853758,-681.08335306,0.00032876,2]
[394508877,1763647853768,-616.77705477,0.00032876,2]
[394508878,1763647853778,-681.08335306,0.00032876,2]
[394508879,1763647853788,-681.08335306,0.00032876,2]
[394508880,1763647853798,-681.08335306,0.00032876,2]
[394508881,1763647853807,-681.08335306,0.00032876,2]
[394508882,1763647853817,-681.08335306,0.00032876,2]
[394508883,1763647853827,-681.08335306,0.00032876,2]
[394508884,1763647853836,-681.08335306,0.00032876,2]
[394508885,1763647853846,-681.08335306,0.00032876,2]
[394508886,1763647853858,-681.08335306,0.00032876,2]
[394508887,1763647853868,-681.08335306,0.00032876,2]
[394508888,1763647853878,-681.08335306,0.00032876,2]
[394508889,1763647853888,-681.08335306,0.00032876,2]
[394508890,1763647853897,-681.08335306,0.00032876,2]
[394508891,1763647853907,-681.08335306,0.00032876,2]
[394508892,1763647853916,-681.08335306,0.00032876,2]
[394508893,1763647853926,-681.08335306,0.00032876,2]
[394508894,1763647853935,-681.08335306,0.00032876,2]
[394508895,1763647853944,-681.08335306,0.00032876,2]
[394508896,1763647853953,-681.08335306,0.00032876,2]
[394508897,1763647853964,-681.08335306,0.00032876,2]
[394508898,1763647853975,-681.08335306,0.00032876,2]
[394508899,1763647853984,-681.08335306,0.00032876,2]
[394508900,1763647853993,-681.08335306,0.00032876,2]
[394508901,1763647854003,-681.08335306,0.00032876,2]
[394508902,1763647854012,-681.08335306,0.00032876,2]
[394508903,1763647854021,-681.08335306,0.00032876,2]
[394508904,1763647854031,-681.08335306,0.00032876,2]
[394508905,1763647854040,-681.08335306,0.00032876,2]
[394508906,1763647854049,-681.08335306,0.00032876,2]
[394508907,1763647854059,-681.08335306,0.00032876,2]
[394508908,1763647854069,-681.08335306,0.00032876,2]
[394508909,1763647854078,-681.08335306,0.00032876,2]
[394508910,1763647854087,-681.08335306,0.00032876,2]
[394508911,1763647854097,-681.08335306,0.00032876,2]
[394508912,1763647854107,-681.08335306,0.00032876,2]
[394508913,1763647854117,-681.08335306,0.00032876,2]
[394508914,1763647854127,-681.08335306,0.00032876,2]
[394508915,1763647854137,-1022.0590134,0.00032876,2]
[394508916,1763647854147,-1022.0590134,0.00032876,2]
[394508917,1763647854156,-1022.0590134,0.00032876,2]
[394508918,1763647854166,-1022.0590134,0.00032876,2]
[394508919,1763647854175,-1022.0590134,0.00032876,2]
[394508920,1763647854184,-1022.0590134,0.00032876,2]
[394508921,1763647854194,-1022.0590134,0.00032876,2]
[394508922,1763647854204,-1022.0590134,0.00032876,2]
[394508923,1763647854219,-1022.0590134,0.00032876,2]
[394508924,1763647854232,-1022.0590134,0.00032876,2]
[394508925,1763647854241,-1022.0590134,0.00032876,2]
[394508926,1763647854251,-1022.0590134,0.00032876,2]
[394508927,1763647854260,-1022.0590134,0.00032876,2]
[394508928,1763647854270,-1022.0590134,0.00032876,2]
[394508929,1763647854279,-1022.0590134,0.00032876,2]
[394508930,1763647854290,-1022.0590134,0.00032876,2]
[394508931,1763647854299,-1022.0590134,0.00032876,2]
[394508932,1763647854307,-1022.0590134,0.00032876,2]
[394508933,1763647854316,-1022.0590134,0.00032876,2]
[394508934,1763647854325,-1022.0590134,0.00032876,2]
[394508935,1763647854335,-1022.0590134,0.00032876,2]
[394508936,1763647854344,-1022.0590134,0.00032876,2]
[394508937,1763647854354,-1022.0590134,0.00032876,2]
[394508938,1763647854363,-1022.0590134,0.00032876,2]
[394508939,1763647854373,-500.0,0.00032876,2]
[394508940,1763647854382,-500.0,0.00032876,2]
[394508941,1763647854391,-1054.91091025,0.00032876,2]
[394508942,1763647854400,-1054.91091025,0.00032876,2]
[394508943,1763647854409,-1054.91091025,0.00032876,2]
[394508944,1763647854418,-1054.91091025,0.00032876,2]
[394508945,1763647854427,-1054.91091025,0.00032876,2]
[394508946,1763647854437,-1054.91091025,0.00032876,2]
[394508947,1763647854447,-1054.91091025,0.00032876,2]
[394508948,1763647854456,-1002.35451121,0.00032876,14]
[394508949,1763647854466,-8697.91,0.00032877,10]
[394508950,1763647854478,-7248.25,0.00032877,10]
[394508951,1763647854487,-6040.21,0.00032877,10]
[394508952,1763647854497,-917.03661271,0.00032877,120]
[394508953,1763647854506,-154.51711487,0.00032877,14]
[394508954,1763647854515,-160.0,0.00032929,5]
[394508955,1763647854525,-88643.27491269,0.00033,2]
[394508956,1763647854534,-155.6136183,0.00033,2]
[394508957,1763647854544,-1000.0,0.00033,120]
[394508958,1763647854553,-380.0,0.00033,120]
[394508959,1763647854562,-1144.52472903,0.00033083,2]
[394508960,1763647854572,-885.25,0.000331,7]
[394508961,1763647854581,-1470.559529,0.00033165,2]
[394508962,1763647854591,-232.08671869,0.000332,117]
[394508963,1763647854600,-232.08671869,0.000332,117]
[394508964,1763647854610,-232.08671869,0.000332,117]
[394508965,1763647854619,-232.08671869,0.000332,117]
[394508966,1763647854629,-800.0,0.0003325,12]
[394508967,1763647854638,-500.0,0.0003325,12]
[394508968,1763647854648,-581.85873132,0.00033913,120]
[394508969,1763647854657,-902.2,0.00033972,2]
[394508970,1763647854666,-150.0,0.00033977,2]
[394508971,1763647854675,-5089.10673459,0.0003398,2]
[394508972,1763647854684,-1015.31315834,0.00034,2]
[394508973,1763647854693,-2356.88,0.00034,14]
[394508974,1763647854703,-1000.0,0.000341,7]
[394508975,1763647854712,-157.26250884,0.00034246,120]
[394508976,1763647854722,-95000.0,0.00034247,30]
[394508977,1763647854732,-150.0,0.000344,5]
[394508978,1763647854741,-160.0,0.00034569,6]
[394508979,1763647854751,-500.0,0.00034583,7]
[394508980,1763647854760,-250.0,0.00034948,5]
[394508981,1763647854769,-10737.07826644,0.00035,2]
[394508982,1763647854779,-366.63,0.00035,30]
[394508983,1763647854787,-263.64729,0.00035,120]
[394508984,1763647854797,-659.23062448,0.00035,2]
[394508985,1763647854806,-21525.0,0.00035,2]
[394508986,1763647854816,-156.0,0.00035,120]
[394508987,1763647854825,-1000.0,0.00035,10]
[394508988,1763647854834,-1030.0,0.00035,20]
[394508989,1763647854843,-1000.0,0.00035,120]
[394508990,1763647854852,-30060.481728,0.00035,7]
[394508991,1763647854861,-902.2,0.00035068,2]
[394508992,1763647854871,-1000.0,0.000351,7]
[394508993,1763647854880,-11864.33058001,0.0003533,2]
[394508994,1763647854889,-155.0,0.0003537,59]
[394508995,1763647854898,-302.0,0.00035376,2]
[394508996,1763647854907,-308.58664,0.00035395,2]
[394508997,1763647855016,-302.33233,0.00035406,2]
[394508998,1763647855026,-302.0,0.00035407,2]
[394508999,1763647855036,-302.0,0.00035434,2]
[394509000,1763647855046,-302.0,0.00035434,2]
[394509001,1763647855056,-350.0,0.00035496,5]
[394509002,1763647855065,-209.33,0.00035521,2]
[394509003,1763647855076,-500.0,0.00035559,30]
[394509004,1763647855085,-340.08986947,0.00035588,14]
[394509005,1763647855096,-500.0,0.00035616,7]
[394509006,1763647855107,-500.0,0.00035616,7]
[394509007,1763647855118,-500.0,0.00035616,7]
[394509008,1763647855128,-500.0,0.00035616,7]
[394509009,1763647855138,-500.0,0.00035616,7]
[394509010,1763647855151,-500.0,0.00035616,7]
[394509011,1763647855161,-500.0,0.00035616,7]
[394509012,1763647855170,-500.0,0.00035616,7]
[394509013,1763647855180,-500.0,0.00035616,7]
[394509014,1763647855190,-500.0,0.00035616,7]
[394509015,1763647855199,-500.0,0.00035616,7]
[394509016,1763647855209,-500.0,0.00035616,7]
[394509017,1763647855220,-480.15406529,0.00035616,7]
[394509018,1763647855233,-500.0,0.00035616,7]
[394509019,1763647855242,-500.0,0.00035616,7]
[394509020,1763647855253,-500.0,0.00035616,7]
[394509021,1763647855263,-620.35948568,0.00035616,7]
[394509022,1763647855272,-500.0,0.00035616,7]
[394509023,1763647855281,-500.0,0.00035616,7]
[394509024,1763647855292,-500.0,0.00035616,7]
[394509025,1763647855301,-500.0,0.00035616,7]
[394509026,1763647855310,-500.0,0.00035616,7]
[394509027,1763647855320,-500.0,0.00035616,7]
[394509028,1763647855331,-250.0,0.00035616,3]
[394509029,1763647855341,-611.61287098,0.00035913,120]
[394509030,1763647855351,-6500.0,0.00036,120]
[394509031,1763647855360,-259.87963484,0.00036,2]
[394509032,1763647855370,-161.09332907,0.00036,90]
[394509033,1763647855379,-450.0,0.00036044,5]
[394509034,1763647855389,-299.65785425,0.00036095,16]
[394509035,1763647855399,-902.2,0.00036164,2]
[394509036,1763647855409,-500.0,0.00036164,3]
[394509037,1763647855420,-160.0,0.00036209,7]
[394509038,1763647855430,-204.62043946,0.0003621,2]
[394509039,1763647855440,-266.1397184,0.0003624,2]
[394509040,1763647855451,-550.0,0.00036592,5]
[394509041,1763647855460,-451.47865253,0.00036712,3]
[394509042,1763647855469,-2894.36980735,0.0003686,2]
[394509043,1763647855480,-366.63,0.000369,30]